fUST/lending_fUST_20241110
["ID","MTS","AMOUNT","RATE_DAILY","PERIOD"]
[341756683,1731210639868,-151.0,0.00031679,7]
[341756684,1731210639878,-151.0,0.00031679,7]
[341756685,1731210639887,-151.0,0.00031679,7]
[341756686,1731210639896,-151.0,0.00031679,7]
[341756687,1731210639906,-151.0,0.00031679,7]
[341756688,1731210639915,-151.0,0.00031679,7]
[341756689,1731210639924,-151.0,0.00031679,7]
[341756690,1731210639935,-151.0,0.00031679,7]
[341756691,1731210639944,-207.109385,0.00031679,7]
[341756692,1731210639953,-151.0,0.00031679,7]
[341756693,1731210639962,-151.0,0.00031679,7]
[341756694,1731210639971,-151.0,0.00031679,7]
[341756695,1731210639980,-151.0,0.00031679,7]
[341756696,1731210639989,-151.0,0.00031679,7]
[341756697,1731210639998,-151.0,0.00031679,7]
[341756698,1731210640007,-151.0,0.00031679,7]
[341756699,1731210640016,-151.0,0.00031679,7]
[341756700,1731210640026,-151.0,0.00031679,7]
[341756701,1731210640035,-151.0,0.00031679,7]
[341756702,1731210640046,-151.0,0.00031679,7]
[341756703,1731210640055,-261.676992,0.00031679,7]
[341756705,1731210640065,-155.701028,0.00031679,7]
[341756706,1731210640074,-151.0,0.00031679,7]
[341756708,1731210640083,-155.438035,0.00031679,7]
[341756710,1731210640092,-152.56901,0.0003168,7]
[341756712,1731210640103,-151.611924,0.0003168,7]
[341756714,1731210640112,-477.57142,0.0003168,7]
[341756716,1731210640121,-477.57142,0.0003168,7]
[341756718,1731210640131,-477.57142,0.0003168,7]
[341756720,1731210640140,-477.57142,0.0003168,7]
[341756722,1731210640149,-477.57142,0.0003168,7]
[341756725,1731210640158,-477.57142,0.0003168,7]
[341756728,1731210640168,-477.57142,0.0003168,7]
[341756732,1731210640177,-477.57142,0.0003168,7]
[341756735,1731210640186,-477.57142,0.0003168,7]
[341756738,1731210640195,-477.57142,0.0003168,7]
[341756741,1731210640204,-477.57142,0.0003168,7]
[341756744,1731210640214,-477.57142,0.0003168,7]
[341756746,1731210640223,-477.57142,0.0003168,7]
[341756748,1731210640233,-477.57142,0.0003168,7]
[341756750,1731210640242,-477.57142,0.0003168,7]
[341756753,1731210640251,-477.57142,0.0003168,7]
[341756755,1731210640261,-477.57142,0.0003168,7]
[341756756,1731210640270,-477.57142,0.0003168,7]
[341756759,1731210640279,-477.57142,0.0003168,7]
[341756761,1731210640290,-477.571423,0.0003168,7]
[341756762,1731210640299,-151.0,0.0003168,7]
[341756765,1731210640309,-151.0,0.0003168,7]
[341756766,1731210640318,-151.0,0.0003168,7]
[341756769,1731210640328,-151.0,0.0003168,7]
[341756771,1731210640338,-158.636664,0.0003168,7]
[341756773,1731210640348,-151.0,0.0003168,7]
[341756774,1731210640357,-151.0,0.0003168,7]
[341756777,1731210640367,-151.0,0.0003168,7]
[341756778,1731210640376,-151.0,0.0003168,7]
[341756780,1731210640385,-174.028787,0.0003168,7]
[341756783,1731210640395,-151.0,0.0003168,7]
[341756784,1731210640404,-151.0,0.0003168,2]
[341756786,1731210640414,-151.0,0.0003168,7]
[341756789,1731210640424,-151.0,0.0003168,7]
[341756790,1731210640434,-562.968526,0.0003168,7]
[341756792,1731210640443,-562.968526,0.0003168,7]
[341756795,1731210640453,-562.968526,0.0003168,7]
[341756796,1731210640462,-562.968526,0.0003168,7]
[341756799,1731210640471,-562.968526,0.0003168,7]
[341756801,1731210640481,-562.968526,0.0003168,7]
[341756802,1731210640490,-562.968526,0.0003168,7]
[341756804,1731210640499,-562.968526,0.0003168,7]
[341756806,1731210640508,-562.968526,0.0003168,7]
[341756808,1731210640517,-562.968526,0.0003168,7]
[341756810,1731210640527,-562.968526,0.0003168,7]
[341756812,1731210640536,-562.968526,0.0003168,7]
[341756814,1731210640547,-562.968526,0.0003168,7]
[341756816,1731210640556,-562.968526,0.0003168,7]
[341756818,1731210640565,-562.968526,0.0003168,7]
[341756820,1731210640574,-562.968526,0.0003168,7]
[341756822,1731210640583,-562.968526,0.0003168,7]
[341756824,1731210640592,-562.968526,0.0003168,7]
[341756826,1731210640601,-562.968526,0.0003168,7]
[341756828,1731210640610,-562.968525,0.0003168,7]
[341756830,1731210640619,-151.0,0.0003168,7]
[341756832,1731210640627,-151.0,0.0003168,7]
[341756834,1731210640636,-164.261892,0.0003168,7]
[341756836,1731210640646,-166.070975,0.0003168,7]
[341756838,1731210640655,-3413.04,0.0003168,120]
[341756840,1731210640663,-194.430765,0.0003168,7]
[341756842,1731210640672,-194.430765,0.0003168,7]
[341756844,1731210640682,-194.430765,0.0003168,7]
[341756845,1731210640691,-194.430765,0.0003168,7]
[341756847,1731210640700,-194.430765,0.0003168,7]
[341756848,1731210640709,-194.430765,0.0003168,7]
[341756849,1731210640718,-194.430765,0.0003168,7]
[341756850,1731210640727,-194.430765,0.0003168,7]
[341756851,1731210640736,-194.430765,0.0003168,7]
[341756852,1731210640745,-194.430765,0.0003168,7]
[341756853,1731210640754,-194.430765,0.0003168,7]
[341756854,1731210640763,-194.430765,0.0003168,7]
[341756855,1731210640773,-194.430765,0.0003168,7]
[341756856,1731210640782,-194.430765,0.0003168,7]
[341756857,1731210640792,-194.430765,0.0003168,7]
[341756858,1731210640802,-194.430765,0.0003168,7]
[341756859,1731210640811,-194.430765,0.0003168,7]
[341756860,1731210640820,-194.430765,0.0003168,7]
[341756861,1731210640830,-194.430765,0.0003168,7]
[341756862,1731210640839,-194.430761,0.0003168,7]
[341756863,1731210640849,-743.17,0.0003168,2]
[341756864,1731210640862,-179.561518,0.00031681,2]
[341756865,1731210640871,-500.0,0.00031681,2]
[341756866,1731210640881,-606.22059719,0.00031681,2]
[341756867,1731210640890,-500.0,0.00031681,2]
[341756868,1731210640901,-200.52142843,0.00031681,2]
[341756869,1731210640910,-303.04621698,0.00031681,2]
[341756870,1731210640920,-266.54823765,0.00031681,2]
[341756871,1731210640932,-500.0,0.00031681,2]
[341756872,1731210640942,-500.0,0.00031681,2]
[341756873,1731210640952,-500.0,0.00031681,2]
[341756874,1731210640962,-500.0,0.00031681,2]
[341756875,1731210640972,-500.0,0.00031681,2]
[341756876,1731210640982,-199.14467195,0.00031681,2]
[341756877,1731210640991,-203.39109911,0.00031681,2]
[341756878,1731210641000,-500.0,0.00031681,2]
[341756879,1731210641009,-430.38997379,0.00031681,2]
[341756880,1731210641018,-151.0,0.00031682,7]
[341756881,1731210641027,-151.0,0.00031682,7]
[341756882,1731210641037,-153.169852,0.00031682,7]
[341756883,1731210641052,-151.0,0.00031682,7]
[341756884,1731210641061,-155.520398,0.00031682,7]
[341756885,1731210641070,-192.05050557,0.00031682,2]
[341756886,1731210641079,-167.61643716,0.00031682,2]
[341756887,1731210641088,-331.64440696,0.00031682,2]
[341756888,1731210641099,-395449.98597881,0.00031682,10]
[341756930,1731210713303,3009.05,0.00031682,30]
[341756977,1731211081716,163.37731,0.00013973,2]
[341756980,1731211302848,607.63888889,0.00020844,2]
[341756981,1731211348487,1071.27,0.00031684,30]
[341756982,1731211357788,35385.17,0.00020844,2]
[341756984,1731211385072,186.974643,0.00031684,120]
[341757044,1731211838677,-607.63888889,0.00022118,2]
[341757046,1731211838687,-3793.0,0.00023331,2]
[341757048,1731211838697,-1248.9543252,0.00025034,2]
[341757050,1731211838707,-204.382766,0.00025177,2]
[341757052,1731211838716,-300.0,0.00025663,2]
[341757054,1731211838726,-3793.0,0.00025664,4]
[341757056,1731211838736,-168.080497,0.00026356,2]
[341757058,1731211838746,-300.0,0.00026572,2]
[341757060,1731211838755,-24860.0,0.00026685,2]
[341757062,1731211838765,-333.51094896,0.00027112,2]
[341757064,1731211838775,-300.085683,0.00027212,2]
[341757066,1731211838785,-333.51094895,0.00027751,2]
[341757068,1731211838794,-420.0,0.00027783,2]
[341757070,1731211838803,-300.085683,0.00027897,2]
[341757073,1731211838813,-201.4895519,0.00028145,2]
[341757075,1731211838823,-427.88049448,0.00028231,2]
[341757077,1731211838832,-3793.0,0.00028231,7]
[341757078,1731211838841,-333.51094895,0.00028389,2]
[341757081,1731211838851,-516.3526485,0.00028419,2]
[341757083,1731211838861,-300.085683,0.00028582,2]
[341757085,1731211838871,-421.5856672,0.00028647,2]
[341757086,1731211838879,-333.51094895,0.00029028,2]
[341757089,1731211838889,-333.51094895,0.00029666,2]
[341757091,1731211838899,-168.080497,0.00029949,2]
[341757093,1731211838908,-300.02,0.0003,2]
[341757095,1731211838917,-500.0,0.0003,2]
[341757097,1731211838927,-500.0,0.0003,2]
[341757099,1731211838935,-500.0,0.0003,4]
[341757101,1731211838945,-467.0,0.00030078,2]
[341757103,1731211838955,-500.0,0.00030135,2]
[341757105,1731211838964,-1198.96,0.00030136,2]
[341757107,1731211838974,-500.0,0.00030136,2]
[341757109,1731211838983,-715.01,0.00030136,2]
[341757111,1731211838992,-500.0,0.00030136,2]
[341757113,1731211839002,-598.7,0.00030136,2]
[341757115,1731211839011,-851.0,0.00030136,2]
[341757117,1731211839022,-262.0,0.00030136,2]
[341757119,1731211839031,-500.0,0.00030136,2]
[341757121,1731211839040,-203.75,0.00030136,2]
[341757123,1731211839051,-563.26,0.00030136,2]
[341757125,1731211839060,-427.95762925,0.00030136,2]
[341757127,1731211839070,-333.51094895,0.00030305,2]
[341757129,1731211839080,-1198.96,0.0003041,2]
[341757131,1731211839089,-500.0,0.0003041,2]
[341757133,1731211839099,-715.01,0.0003041,2]
[341757135,1731211839109,-500.0,0.0003041,2]
[341757137,1731211839119,-598.7,0.0003041,2]
[341757139,1731211839127,-851.0,0.0003041,2]
[341757141,1731211839137,-500.0,0.0003041,2]
[341757143,1731211839147,-563.26,0.0003041,2]
[341757145,1731211839156,-158.414,0.000306,30]
[341757147,1731211839165,-381.514,0.00030607,2]
[341757149,1731211839174,-1198.96,0.00030684,2]
[341757150,1731211839184,-500.0,0.00030684,2]
[341757152,1731211839193,-715.01,0.00030684,2]
[341757153,1731211839203,-217.89971785,0.00030684,2]
[341757154,1731211839215,-598.7,0.00030684,2]
[341757155,1731211839224,-851.0,0.00030684,2]
[341757156,1731211839234,-500.0,0.00030684,2]
[341757157,1731211839243,-563.26,0.00030684,2]
[341757158,1731211839254,-405.8977558,0.00030849,30]
[341757159,1731211839264,-154.6032781,0.00030849,30]
[341757160,1731211839273,-266.4368133,0.00030849,30]
[341757161,1731211839283,-335.3302071,0.00030849,30]
[341757162,1731211839293,-308.8627427,0.00030849,30]
[341757163,1731211839302,-303.7049688,0.00030849,30]
[341757164,1731211839312,-151.8524844,0.00030849,30]
[341757165,1731211839321,-333.51094895,0.00030943,2]
[341757166,1731211839330,-1198.96,0.00030958,2]
[341757167,1731211839339,-500.0,0.00030958,2]
[341757168,1731211839348,-715.01,0.00030958,2]
[341757169,1731211839358,-598.7,0.00030958,2]
[341757170,1731211839367,-851.0,0.00030958,2]
[341757171,1731211839377,-500.0,0.00030958,2]
[341757172,1731211839386,-563.26,0.00030958,2]
[341757173,1731211839395,-3793.0,0.00031054,14]
[341757174,1731211839405,-500.0,0.00031231,7]
[341757175,1731211839414,-1198.96,0.00031232,2]
[341757176,1731211839424,-466.72356218,0.00031232,2]
[341757177,1731211839433,-715.01,0.00031232,2]
[341757178,1731211839443,-598.7,0.00031232,2]
[341757179,1731211839453,-851.0,0.00031232,2]
[341757180,1731211839462,-500.0,0.00031232,2]
[341757181,1731211839471,-563.26,0.00031232,2]
[341757182,1731211839481,-215.24,0.000315,31]
[341757183,1731211839490,-215.24,0.000315,31]
[341757184,1731211839500,-215.24,0.000315,31]
[341757185,1731211839510,-215.24,0.000315,31]
[341757186,1731211839521,-215.24,0.000315,31]
[341757187,1731211839532,-215.24,0.000315,31]
[341757188,1731211839542,-215.24,0.000315,31]
[341757189,1731211839552,-215.24,0.000315,31]
[341757190,1731211839561,-215.24,0.000315,31]
[341757191,1731211839571,-215.24,0.000315,31]
[341757192,1731211839580,-215.24,0.000315,31]
[341757193,1731211839590,-215.24,0.000315,31]
[341757194,1731211839599,-1198.96,0.00031506,2]
[341757195,1731211839609,-715.01,0.00031506,2]
[341757196,1731211839619,-598.7,0.00031506,2]
[341757197,1731211839628,-851.0,0.00031506,2]
[341757198,1731211839638,-500.0,0.00031506,2]
[341757199,1731211839647,-563.26,0.00031506,2]
[341757200,1731211839657,-333.51094895,0.00031582,2]
[341757201,1731211839666,-786.7598908,0.00031582,2]
[341757202,1731211839675,-1000.0,0.00031584,2]
[341757203,1731211839684,-500.0,0.000316,36]
[341757204,1731211839694,-1963.43848435,0.00031651,31]
[341757205,1731211839703,-529.64,0.00031661,10]
[341757206,1731211839712,-441.36,0.00031661,10]
[341757207,1731211839722,-850.03,0.00031663,3]
[341757208,1731211839731,-153.0,0.00031671,30]
[341757209,1731211839740,-153.0,0.00031671,30]
[341757210,1731211839750,-153.0,0.00031671,30]
[341757211,1731211839880,-153.0,0.00031671,30]
[341757212,1731211839890,-153.0,0.00031671,30]
[341757213,1731211839900,-153.0,0.00031671,30]
[341757214,1731211839910,-212.0390805,0.00031671,30]
[341757215,1731211839921,-153.0,0.00031671,30]
[341757216,1731211839932,-153.0,0.00031671,30]
[341757218,1731211839942,-153.0,0.00031671,30]
[341757219,1731211839951,-153.0,0.00031671,30]
[341757220,1731211839961,-153.0,0.00031671,30]
[341757221,1731211839970,-212.0390805,0.00031671,30]
[341757222,1731211839980,-153.0,0.00031671,30]
[341757223,1731211839989,-212.0390805,0.00031671,30]
[341757224,1731211839998,-153.0,0.00031671,30]
[341757225,1731211840008,-153.0,0.00031671,30]
[341757226,1731211840020,-153.0,0.00031671,30]
[341757227,1731211840028,-212.0390805,0.00031671,30]
[341757228,1731211840038,-153.0,0.00031671,30]
[341757230,1731211840047,-153.0,0.00031671,30]
[341757231,1731211840056,-153.0,0.00031671,30]
[341757232,1731211840065,-212.0390805,0.00031671,30]
[341757233,1731211840075,-153.0,0.00031671,30]
[341757234,1731211840084,-151.8524844,0.00031671,30]
[341757235,1731211840093,-153.0,0.00031671,30]
[341757236,1731211840102,-151.8524844,0.00031671,30]
[341757237,1731211840111,-153.0,0.00031671,30]
[341757238,1731211840120,-212.0390805,0.00031671,30]
[341757239,1731211840129,-151.8524844,0.00031671,30]
[341757240,1731211840139,-153.0,0.00031671,30]
[341757241,1731211840149,-212.0390805,0.00031671,30]
[341757242,1731211840158,-212.0390805,0.00031671,30]
[341757243,1731211840168,-212.0390805,0.00031671,30]
[341757244,1731211840177,-212.0390805,0.00031671,30]
[341757245,1731211840186,-212.0390805,0.00031671,30]
[341757246,1731211840196,-212.0390805,0.00031671,30]
[341757247,1731211840206,-212.0390805,0.00031671,30]
[341757248,1731211840219,-167.961449,0.00031671,30]
[341757249,1731211840228,-212.0390805,0.00031671,30]
[341757250,1731211840238,-212.0390805,0.00031671,30]
[341757251,1731211840248,-212.0390805,0.00031671,30]
[341757252,1731211840258,-212.0390805,0.00031671,30]
[341757253,1731211840269,-212.0390805,0.00031671,30]
[341757254,1731211840279,-212.0390805,0.00031671,30]
[341757255,1731211840289,-212.0390805,0.00031671,30]
[341757256,1731211840300,-212.0390805,0.00031671,30]
[341757257,1731211840310,-212.0390805,0.00031671,30]
[341757258,1731211840319,-212.0390805,0.00031671,30]
[341757260,1731211840329,-212.0390805,0.00031671,30]
[341757262,1731211840338,-212.0390805,0.00031671,30]
[341757264,1731211840347,-212.0390805,0.00031671,30]
[341757265,1731211840356,-212.0390805,0.00031671,30]
[341757266,1731211840365,-212.0390805,0.00031671,30]
[341757267,1731211840375,-212.0390805,0.00031671,30]
[341757268,1731211840384,-212.0390805,0.00031671,30]
[341757269,1731211840394,-212.0390805,0.00031671,30]
[341757270,1731211840403,-212.0390805,0.00031671,30]
[341757271,1731211840412,-301.630352,0.00031671,30]
[341757272,1731211840422,-153.0,0.00031671,30]
[341757273,1731211840431,-153.0,0.00031671,30]
[341757274,1731211840441,-153.0,0.00031671,30]
[341757275,1731211840450,-153.0,0.00031671,30]
[341757276,1731211840459,-500.0,0.00031673,5]
[341757277,1731211840468,-503.63031894,0.00031673,2]
[341757278,1731211840477,-501.57030107,0.00031673,5]
[341757279,1731211840486,-500.0,0.00031673,2]
[341757280,1731211840495,-500.0,0.00031673,5]
[341757281,1731211840504,-502.2674425,0.00031673,2]
[341757282,1731211840514,-500.0,0.00031673,5]
[341757283,1731211840525,-501.13683846,0.00031673,5]
[341757284,1731211840534,-3413.04,0.00031679,120]
[341757285,1731211840545,-151.0,0.0003168,7]
[341757286,1731211840554,-163.317588,0.0003168,7]
[341757287,1731211840563,-45438.9098096,0.0003168,5]
[341757288,1731211840572,-151.0,0.0003168,7]
[341757289,1731211840581,-151.0,0.0003168,7]
[341757290,1731211840591,-151.0,0.0003168,7]
[341757291,1731211840599,-151.0,0.0003168,7]
[341757292,1731211840608,-151.0,0.0003168,7]
[341757293,1731211840617,-151.0,0.0003168,7]
[341757294,1731211840626,-261.040232,0.0003168,7]
[341757295,1731211840635,-157.530062,0.0003168,7]
[341757296,1731211840644,-500.0,0.00031681,2]
[341757297,1731211840653,-366.45207757,0.00031681,2]
[341757298,1731211840662,-500.0,0.00031681,2]
[341757299,1731211840671,-500.0,0.00031681,2]
[341757300,1731211840679,-500.0,0.00031681,2]
[341757301,1731211840689,-172.49178045,0.00031681,2]
[341757302,1731211840698,-409.22740496,0.00031681,2]
[341757303,1731211840707,-500.0,0.00031681,2]
[341757304,1731211840716,-500.0,0.00031681,2]
[341757305,1731211840725,-500.0,0.00031681,2]
[341757306,1731211840734,-176.82532032,0.00031681,2]
[341757307,1731211840743,-166.02942455,0.00031681,2]
[341757308,1731211840752,-500.0,0.00031681,2]
[341757309,1731211840761,-500.0,0.00031681,2]
[341757310,1731211840771,-500.0,0.00031681,2]
[341757311,1731211840780,-500.0,0.00031681,2]
[341757312,1731211840789,-638.86983056,0.00031681,2]
[341757313,1731211840799,-500.0,0.00031681,2]
[341757314,1731211840808,-500.0,0.00031681,2]
[341757315,1731211840817,-366.54823765,0.00031681,2]
[341757316,1731211840827,-500.0,0.00031681,2]
[341757317,1731211840836,-500.0,0.00031681,2]
[341757318,1731211840845,-322.95633657,0.00031681,2]
[341757319,1731211840854,-500.00000001,0.00031681,2]
[341757320,1731211840863,-199.14467195,0.00031681,2]
[341757321,1731211840872,-502.25156983,0.00031681,2]
[341757322,1731211840881,-504.7911007,0.00031681,2]
[341757323,1731211840891,-390.39278209,0.00031681,2]
[341757324,1731211840900,-500.78016918,0.00031681,2]
[341757325,1731211840909,-501.05267497,0.00031681,2]
[341757326,1731211840918,-500.0,0.00031681,2]
[341757327,1731211840927,-500.0,0.00031681,2]
[341757328,1731211840936,-500.0,0.00031681,2]
[341757329,1731211840945,-500.0,0.00031681,2]
[341757330,1731211840954,-500.0,0.00031681,2]
[341757331,1731211840963,-430.38997379,0.00031681,2]
[341757332,1731211840972,-3069.03425984,0.00031681,2]
[341757333,1731211840982,-335.23287432,0.00031681,2]
[341757334,1731211840991,-384.10101113,0.00031681,2]
[341757335,1731211841001,-325283.68580028,0.00031682,10]
[341757336,1731211841053,-1994.04820994,0.00031682,10]
[341757337,1731211841064,-1003.50829317,0.00031682,10]
[341757338,1731211841074,-42794.5349806,0.00031682,10]
[341757339,1731211841129,163.217102,0.00013973,2]
[341757364,1731211843628,-163.217102,0.00022759,2]
[341757365,1731211843638,-163.217102,0.00031546,2]
[341757366,1731211843648,-367.8,0.00031661,10]
[341757367,1731211843657,-59.43018562,0.00031671,30]
[341757505,1731212233516,607.63888889,0.00020844,2]
[341757507,1731212517139,163.187705,0.00013973,2]
[341757509,1731212607641,607.63888889,0.00020844,2]
[341757526,1731212917620,273.47457961,0.0001,2]
[341757539,1731212980556,607.63888889,0.00020844,2]
[341757588,1731213032712,-2008.72364098,0.00022316,2]
[341757596,1731213032770,-151.99773526,0.00022316,2]
[341757598,1731213032781,-135.58000269,0.00022316,2]
[341757792,1731213038828,-472.0588862,0.00022316,2]
[341757793,1731213038839,-1207.999999,0.00023,2]
[341757794,1731213038849,-163.187705,0.00024224,2]
[341757795,1731213038860,-500.0,0.00026574,2]
[341757796,1731213038871,-300.0,0.00026847,2]
[341757797,1731213038882,-300.0,0.00026847,2]
[341757798,1731213038893,-1000.0,0.00026848,2]
[341757799,1731213038906,-746.50187247,0.00027852,2]
[341757800,1731213038917,-175.62244,0.00027936,2]
[341757801,1731213038928,-176.345586,0.00028145,2]
[341757802,1731213038941,-542.0293837,0.00028419,2]
[341757803,1731213038952,-300.0,0.00029029,2]
[341757804,1731213038962,-204.382766,0.00029431,2]
[341757805,1731213038973,-209.0,0.00029532,2]
[341757806,1731213038984,-3912.0872117,0.0002968,61]
[341757807,1731213038994,-1687.6827013,0.0003,15]
[341757808,1731213039007,-500.0,0.00030136,2]
[341757809,1731213039017,-633.25863205,0.00030136,2]
[341757810,1731213039028,-501.74497621,0.00030136,2]
[341757811,1731213039039,-391.19253996,0.00030136,2]
[341757812,1731213039054,-500.0,0.00030136,2]
[341757813,1731213039064,-504.4235075,0.00030136,2]
[341757814,1731213039074,-500.0,0.00030136,2]
[341757815,1731213039084,-413.12335503,0.00030136,2]
[341757816,1731213039095,-515.2717027,0.00030849,30]
[341757817,1731213039105,-247.2866573,0.00030849,30]
[341757818,1731213039115,-306.0,0.00030878,30]
[341757819,1731213039125,-158.494,0.0003091,30]
[341757820,1731213039135,-500.0,0.00031231,2]
[341757821,1731213039146,-202.54995033,0.00031267,2]
[341757822,1731213039157,-5844.43011767,0.00031326,2]
[341757823,1731213039167,-291.82208034,0.000314,2]
[341757824,1731213039178,-500.0,0.00031403,3]
[341757825,1731213039188,-291.82208033,0.00031426,2]
[341757826,1731213039199,-291.82208033,0.00031452,2]
[341757827,1731213039208,-291.82208033,0.00031478,2]
[341757828,1731213039218,-899.22,0.00031486,2]
[341757829,1731213039229,-536.25,0.00031486,2]
[341757830,1731213039238,-500.0,0.00031486,2]
[341757831,1731213039248,-500.0,0.00031493,2]
[341757832,1731213039258,-638.25,0.00031499,2]
[341757833,1731213039268,-500.0,0.00031499,2]
[341757834,1731213039278,-168.44619401,0.000315,60]
[341757835,1731213039288,-193.82,0.000315,31]
[341757836,1731213039300,-193.82,0.000315,31]
[341757837,1731213039309,-193.82,0.000315,31]
[341757838,1731213039319,-193.82,0.000315,31]
[341757839,1731213039329,-193.82,0.000315,31]
[341757840,1731213039340,-193.82,0.000315,31]
[341757841,1731213039349,-193.82,0.000315,31]
[341757842,1731213039359,-193.82,0.000315,31]
[341757843,1731213039370,-193.82,0.000315,31]
[341757844,1731213039380,-193.82,0.000315,31]
[341757845,1731213039390,-193.82,0.000315,31]
[341757846,1731213039400,-193.82,0.000315,31]
[341757847,1731213039540,-291.82208033,0.00031503,2]
[341757848,1731213039561,-500.0,0.00031505,2]
[341757849,1731213039571,-291.82208033,0.00031529,2]
[341757850,1731213039580,-291.82208033,0.00031555,2]
[341757851,1731213039589,-1000.0,0.00031581,2]
[341757852,1731213039599,-2308.32022939,0.00031581,3]
[341757853,1731213039611,-661.81185665,0.00031581,3]
[341757854,1731213039622,-268.94630638,0.00031581,3]
[341757855,1731213039634,-7423.35244651,0.00031581,3]
[341757856,1731213039646,-25371.32413691,0.00031581,3]
[341757857,1731213039655,-409.93154212,0.00031581,7]
[341757858,1731213039664,-291.82208033,0.00031581,2]
[341757859,1731213039673,-500.0,0.00031582,7]
[341757860,1731213039681,-468.34,0.0003159,10]
[341757861,1731213039691,-212.46,0.0003159,3]
[341757862,1731213039700,-390.28,0.0003159,10]
[341757863,1731213039709,-637.39,0.0003159,3]
[341757864,1731213039718,-325.23,0.0003159,10]
[341757865,1731213039727,-2500.0,0.00031591,3]
[341757866,1731213039736,-6166.64629575,0.000316,2]
[341757867,1731213039745,-6166.64629573,0.000316,2]
[341757868,1731213039755,-6166.64629573,0.000316,2]
[341757869,1731213039765,-6166.64629573,0.000316,2]
[341757870,1731213039774,-500.0,0.000316,36]
[341757871,1731213039784,-6248.39279865,0.000316,2]
[341757872,1731213039795,-2500.0,0.000316,3]
[341757873,1731213039805,-5742.11985367,0.0003165,34]
[341757874,1731213039814,-5000.0,0.0003165,33]
[341757875,1731213039823,-5000.0,0.0003165,35]
[341757876,1731213039832,-5000.0,0.0003165,34]
[341757877,1731213039842,-5000.0,0.0003165,35]
[341757878,1731213039851,-153.0,0.00031671,30]
[341757879,1731213039860,-424.078161,0.00031671,30]
[341757880,1731213039870,-153.0,0.00031671,30]
[341757881,1731213039879,-306.0,0.00031671,30]
[341757882,1731213039888,-212.0390805,0.00031671,30]
[341757883,1731213039897,-424.078161,0.00031671,30]
[341757884,1731213039907,-153.0,0.00031671,30]
[341757885,1731213039916,-153.0,0.00031671,30]
[341757886,1731213039925,-153.0,0.00031671,30]
[341757887,1731213039935,-212.0390805,0.00031671,30]
[341757888,1731213039944,-212.0390805,0.00031671,30]
[341757889,1731213039954,-212.0390805,0.00031671,30]
[341757890,1731213039963,-301.630352,0.00031671,30]
[341757891,1731213039972,-212.0390805,0.00031671,30]
[341757892,1731213039982,-153.0,0.00031671,30]
[341757893,1731213039991,-212.0390805,0.00031671,30]
[341757894,1731213040001,-212.0390805,0.00031671,30]
[341757895,1731213040010,-306.0,0.00031671,30]
[341757896,1731213040020,-306.0,0.00031671,30]
[341757897,1731213040029,-212.0390805,0.00031671,30]
[341757898,1731213040039,-212.0390805,0.00031671,30]
[341757899,1731213040049,-167.961449,0.00031671,30]
[341757900,1731213040059,-212.0390805,0.00031671,30]
[341757901,1731213040068,-212.0390805,0.00031671,30]
[341757903,1731213040077,-212.0390805,0.00031671,30]
[341757905,1731213040086,-212.0390805,0.00031671,30]
[341757906,1731213040096,-212.0390805,0.00031671,30]
[341757909,1731213040105,-212.0390805,0.00031671,30]